fUST/lending_fUST_20240618
["ID","MTS","AMOUNT","RATE_DAILY","PERIOD"]
[329749865,1718647838120,-24340.81151268,0.00014553,2]
[329749867,1718647838130,-2793.02520053,0.000149,2]
[329749869,1718647838140,-411.86685665,0.00014998,2]
[329749871,1718647838150,-308.00319694,0.00014998,2]
[329749873,1718647838159,-155.02944971,0.00014998,2]
[329749875,1718647838170,-155.01704847,0.00014998,2]
[329749877,1718647838180,-155.01550155,0.00014999,2]
[329749879,1718647838189,-7623.19806578,0.00015,2]
[329749881,1718647838203,-1693.11395485,0.00015,2]
[329749883,1718647838214,-12873.56227363,0.00015,2]
[329749885,1718647838223,-154.98450155,0.00015,2]
[329749887,1718647838234,-1100.96946929,0.00015,2]
[329749889,1718647838243,-219.40280072,0.00015,2]
[329749891,1718647838253,-489.77886636,0.000156,2]
[329749893,1718647838263,-500.0,0.00016438,2]
[329749895,1718647838273,-500.0,0.00016438,2]
[329749897,1718647838283,-500.0,0.00016438,2]
[329749899,1718647838293,-631.54375845,0.00016438,2]
[329749901,1718647838304,-255.13698347,0.00016438,2]
[329749903,1718647838313,-381.88255219,0.00016438,2]
[329750148,1718647842116,-118.11744781,0.00016438,2]
[329750150,1718647842125,-348.84828664,0.00016438,2]
[329750152,1718647842135,-506.75348073,0.00016438,2]
[329750154,1718647842151,-500.0,0.00016438,2]
[329750156,1718647842160,-500.0,0.00016438,2]
[329750158,1718647842170,-500.0,0.00016438,2]
[329750160,1718647842180,-500.0,0.00016438,2]
[329750162,1718647842190,-500.0,0.00016438,2]
[329750164,1718647842200,-500.0,0.00016438,2]
[329750166,1718647842208,-449.23211306,0.00016438,2]
[329750168,1718647842217,-500.0,0.00016438,2]
[329750170,1718647842226,-500.0,0.00016438,2]
[329750172,1718647842236,-530.28,0.00016438,2]
[329750174,1718647842245,-500.0,0.00016438,2]
[329750176,1718647842254,-1610.47,0.00016438,2]
[329750178,1718647842264,-520.2,0.00016438,2]
[329750180,1718647842272,-500.0,0.00016438,2]
[329750182,1718647842281,-500.0,0.00016438,2]
[329750184,1718647842290,-500.0,0.00016438,2]
[329750186,1718647842300,-580.65,0.00016438,2]
[329750188,1718647842309,-500.0,0.00016438,2]
[329750190,1718647842318,-417.42757665,0.00016438,2]
[329750192,1718647842327,-500.0,0.00016438,2]
[329750194,1718647842336,-500.0,0.00016438,2]
[329750196,1718647842346,-246.32581133,0.00016438,2]
[329750198,1718647842355,-500.0,0.00016438,2]
[329750200,1718647842364,-500.0,0.00016438,2]
[329750202,1718647842373,-500.0,0.00016438,2]
[329750204,1718647842383,-500.0,0.00016438,2]
[329750206,1718647842392,-500.0,0.00016438,2]
[329750209,1718647842401,-555.37047904,0.00016438,2]
[329750212,1718647842411,-500.0,0.00016438,2]
[329750215,1718647842420,-500.0,0.00016438,2]
[329750218,1718647842429,-119.15282761,0.00016438,2]
[329750222,1718647842440,-380.84717239,0.00016438,2]
[329750225,1718647842452,-500.0,0.00016438,2]
[329750228,1718647842461,-500.0,0.00016438,2]
[329750231,1718647842470,-500.0,0.00016438,2]
[329750234,1718647842479,-500.0,0.00016438,2]
[329750236,1718647842488,-500.0,0.00016438,2]
[329750237,1718647842497,-250.18478767,0.00016438,2]
[329750238,1718647842515,-249.81521233,0.00016438,2]
[329750239,1718647842524,-500.0,0.00016438,2]
[329750241,1718647842534,-440.58840406,0.00016438,2]
[329750246,1718647843055,-59.41159594,0.00016438,2]
[329750247,1718647843065,-500.0,0.00016438,2]
[329750248,1718647843074,-500.0,0.00016438,2]
[329750249,1718647843083,-500.0,0.00016438,2]
[329750250,1718647843092,-500.0,0.00016438,2]
[329750251,1718647843101,-616.88,0.00016438,2]
[329750252,1718647843114,-500.0,0.00016712,2]
[329750253,1718647843123,-500.0,0.00016712,2]
[329750254,1718647843133,-500.0,0.00016712,2]
[329750256,1718647843142,-500.0,0.00016712,2]
[329750258,1718647843151,-500.0,0.00016712,2]
[329750260,1718647843161,-421.27887475,0.00016712,2]
[329750273,1718647843275,-78.72112525,0.00016712,2]
[329750275,1718647843284,-241.19421497,0.00016712,2]
[329750277,1718647843296,-258.80578503,0.00016712,2]
[329750279,1718647843305,-530.28,0.00016712,2]
[329750281,1718647843315,-236.79471497,0.00016712,2]
[329750413,1718648222996,402.2507925,9.999e-05,2]
[329750414,1718648285038,1985.59553979,9.999e-05,2]
[329750415,1718648370691,1302.45303191,0.000225,30]
[329750416,1718648424609,2089.51584214,9.999e-05,2]
[329750435,1718649032068,-521.5832114,0.00012033,2]
[329750436,1718649032079,-300.0,0.00012768,2]
[329750437,1718649032088,-300.0,0.00012768,2]
[329750438,1718649032098,-2215.47500278,0.00012768,2]
[329750439,1718649032110,-975.75,0.00012768,2]
[329750440,1718649032127,-4735.27430888,0.00012768,2]
[329750441,1718649032137,-42141.17260049,0.00012769,2]
[329750442,1718649032147,-23506.85327106,0.00012779,2]
[329750443,1718649032159,-1031.88417756,0.00012779,2]
[329750444,1718649032171,-361.26255138,0.00012779,2]
[329750445,1718649032180,-1628.1313824,0.0001298,2]
[329750446,1718649032189,-250.0,0.00013092,2]
[329750447,1718649032198,-397.85650836,0.00013092,2]
[329750448,1718649032210,-1670.99319192,0.00013092,2]
[329750449,1718649032222,-35.62828742,0.00013092,2]
[329750451,1718649032231,-376.631651,0.00013699,2]
[329750453,1718649032239,-224.75538469,0.00013992,2]
[329750454,1718649032249,-647.51407919,0.00014092,2]
[329750455,1718649032262,-441.04596982,0.00014092,2]
[329751031,1718649042864,-173.26495027,0.00014092,2]
[329751033,1718649042874,-2038.79663246,0.00014092,2]
[329751035,1718649042884,-1187.25331249,0.00014092,2]
[329751037,1718649042895,-1611.73374025,0.00014092,2]
[329751039,1718649042908,-402.1732075,0.00014093,2]
[329751042,1718649042919,-932.0865427,0.00014372,2]
[329751044,1718649042928,-35487.74639273,0.00015,2]
[329751045,1718649042937,-14680.63402627,0.00015,2]
[329751048,1718649042951,-357.3087774,0.00015,2]
[329754738,1718649099702,359.14274376,0.000225,30]
[329754740,1718649112748,457.02362336,9.999e-05,2]
[329754742,1718649143613,154.98450155,9.999e-05,2]
[329754747,1718649438110,476064.46422165,0.00025,60]
[329754748,1718649525630,457.02362336,9.999e-05,2]
[329754749,1718649558481,236.05,0.0001,2]
[329754751,1718649963702,154.98450155,9.999e-05,2]
[329754829,1718650235162,-701.2837482,0.00012735,2]
[329754830,1718650235172,-174.08469328,0.00012743,2]
[329754831,1718650235181,-55.57289178,0.00012743,2]
[329754874,1718650240385,-110.05921411,0.00012743,2]
[329754875,1718650240397,-303.54224453,0.00012743,2]
[329754876,1718650240409,-155.0,0.00012743,2]
[329754877,1718650240419,-155.03303123,0.00012743,2]
[329754878,1718650240429,-216.42006283,0.00012744,2]
[329754879,1718650240439,-11764.12152094,0.00012745,2]
[329754881,1718650240452,-2876.9545729,0.00012745,2]
[329754882,1718650240465,-10258.92390616,0.00012745,2]
[329754883,1718650240475,-1661.81192793,0.00013599,2]
[329754884,1718650240485,-419.710551,0.00013699,2]
[329754885,1718650240498,-3000.0,0.00013699,2]
[329754886,1718650240508,-6806.8652065,0.00013699,2]
[329754887,1718650240518,-155.01549845,0.00013743,2]
[329754888,1718650240529,-155.01549845,0.00013743,2]
[329754889,1718650240539,-548.22126137,0.00013743,2]
[329754890,1718650240552,-56.46474427,0.00013743,2]
[329754891,1718650240562,-155.01395126,0.00013743,2]
[329754892,1718650240572,-820.19439706,0.00013743,2]
[329754893,1718650240582,-686.71206999,0.00013743,2]
[329754894,1718650240592,-178.96758374,0.00013743,2]
[329754896,1718650240602,-198.69609791,0.00013743,2]
[329754897,1718650240614,-37.54477341,0.00013743,2]
[329754898,1718650240624,-155.96057036,0.00013744,2]
[329754899,1718650240634,-806.92645618,0.00013745,2]
[329755136,1718650246612,-313.56105252,0.00013745,2]
[329755138,1718650246624,-908.757849,0.00013745,2]
[329755140,1718650246636,-5146.7572421,0.00013745,2]
[329755142,1718650246655,-6703.06069526,0.00013745,2]
[329755357,1718650249161,-972.49400986,0.00013745,2]
[329755360,1718650249174,-293.26520376,0.00013745,2]
[329755362,1718650249186,-44489.6882628,0.00013745,2]
[329755364,1718650249196,-1627.03719822,0.00014996,2]
[329757061,1718650327337,154.98450155,9.999e-05,2]
[329757062,1718650332920,660.6087999,9.999e-05,2]
[329757063,1718650366854,154.98450155,9.999e-05,2]
[329757064,1718650384635,3617.69416732,9.999e-05,2]
[329757065,1718650386811,292.23401404,9.999e-05,2]
[329757067,1718650387722,16202.73929354,9.999e-05,2]
[329757068,1718650391985,2096.8985255,9.999e-05,2]
[329757069,1718650399720,16197.80986834,9.999e-05,2]
[329757070,1718650403615,3617.69416732,9.999e-05,2]
[329757071,1718650406451,2096.17926436,9.999e-05,2]
[329757072,1718650406771,292.15212532,9.999e-05,2]
[329757073,1718650420631,3617.69416732,9.999e-05,2]
[329757074,1718650436626,671.08179586,9.999e-05,2]
[329757120,1718651377778,-398.10711676,9.943e-05,2]
[329757122,1718651377818,-125.76803448,9.943e-05,2]
[329757124,1718651377847,-154.98450155,9.943e-05,2]
[329757126,1718651377876,-117.35458073,9.943e-05,2]
[329757128,1718651377910,-398.10711676,9.943e-05,2]
[329757130,1718651403291,-300.0,9.94e-05,2]
[329757131,1718651403330,-121.99354377,9.941e-05,2]
[329757132,1718651403372,-421.99354377,9.941e-05,2]
[329757133,1718651403639,-421.99354377,9.941e-05,2]
[329757192,1718651432805,-11107.98678367,9.94e-05,2]
[329757193,1718651432814,-9586.60741905,9.941e-05,2]
[329757195,1718651432824,-1985.59553979,9.942e-05,2]
[329757197,1718651432833,-272.79740364,9.942e-05,2]
[329757199,1718651432845,-2711.78334019,9.999e-05,2]
[329757293,1718651442008,-7926.49931166,9.939e-05,2]
[329757295,1718651442018,-234.82903127,9.999e-05,2]
[329757296,1718651442027,-206.83933292,9.999e-05,2]
[329757297,1718651442037,-405.83319497,0.00010144,2]
[329757298,1718651442046,-166.24435666,0.00010144,2]
[329757299,1718651442056,-1114.23146943,0.00010144,2]
[329757300,1718651442065,-16693.71881914,0.00010146,2]
[329757336,1718651443713,-655.00775039,0.00010145,2]
[329757338,1718651443725,-8206.28118086,0.00010146,2]
[329757340,1718651443735,-266.47,0.00010959,2]
[329757342,1718651443746,-476.0536246,0.000128,2]
[329757344,1718651443756,-476.0536246,0.00013325,2]
[329757346,1718651443767,-951.5803795,0.00013699,2]
[329757348,1718651443776,-325.552638,0.00013699,2]
[329757350,1718651443786,-476.0536246,0.0001385,2]
[329757352,1718651443795,-476.0536246,0.00014375,2]
[329757354,1718651443806,-153.0,0.00014466,2]
[329757357,1718651443818,-153.0,0.00014466,2]
[329757360,1718651443828,-153.0,0.00014466,2]
[329757362,1718651443837,-5163.12502038,0.00014642,2]
[329757364,1718651443848,-476.0536246,0.000149,2]
[329757366,1718651443857,-658.55959801,0.00014991,2]
[329757368,1718651443866,-2089.51584214,0.00014991,2]
[329757370,1718651443876,-692.86602494,0.00014991,2]
[329757372,1718651443885,-189.16290387,0.00014991,2]
[329757374,1718651443895,-456.91543891,0.00014991,2]
[329757376,1718651443904,-155.81898173,0.00014991,2]
[329757378,1718651443914,-26898.44162048,0.00014993,2]
[329757380,1718651443928,-26657.49081944,0.00014993,2]
[329757382,1718651443938,-411.5321918,0.00014994,2]
[329757384,1718651443947,-203.4767354,0.00014994,2]
[329757386,1718651443957,-159.04132765,0.00014994,2]
[329757388,1718651443966,-300.08522441,0.00014995,2]
[329757390,1718651443976,-14768.3737013,0.00014996,2]
[329757392,1718651443988,-1257.79503381,0.00014996,2]
[329757416,1718651444317,-5387.49454902,0.00014996,2]
[329757417,1718651444327,-155.01550155,0.00014996,2]
[329757418,1718651444337,-285.327221,0.00014996,2]
[329757419,1718651444349,-151.0,0.00014996,2]
[329757420,1718651444360,-153.872903,0.00014996,2]
[329757421,1718651444370,-151.0,0.00014996,2]
[329757422,1718651444380,-151.0,0.00014996,2]
[329757423,1718651444390,-579.161089,0.00014996,2]
[329757424,1718651444400,-579.161089,0.00014996,2]
[329757425,1718651444410,-151.0,0.00014996,2]
[329757426,1718651444420,-165.219395,0.00014996,2]
[329757427,1718651444430,-165.219395,0.00014996,2]
[329757428,1718651444440,-165.219395,0.00014996,2]
[329757429,1718651444450,-165.219395,0.00014996,2]
[329757430,1718651444459,-165.219395,0.00014996,2]
[329757431,1718651444469,-165.219395,0.00014996,2]
[329757432,1718651444478,-151.0,0.00014996,2]
[329757433,1718651444488,-151.0,0.00014996,2]
[329757434,1718651444498,-958.735935,0.00014996,2]
[329757435,1718651444508,-151.0,0.00014996,2]
[329757436,1718651444518,-958.735935,0.00014996,2]
[329757437,1718651444528,-958.735935,0.00014996,2]
[329757438,1718651444537,-958.735935,0.00014996,2]
[329757439,1718651444547,-958.735935,0.00014996,2]
[329757440,1718651444556,-625.24428311,0.00014996,2]
[329757441,1718651444569,-333.49165189,0.00014996,2]
[329757442,1718651444579,-151.0,0.00014996,2]
[329757443,1718651444589,-151.0,0.00014996,2]
[329757444,1718651444600,-151.0,0.00014996,2]
[329757445,1718651444609,-151.0,0.00014996,2]
[329757446,1718651444618,-151.0,0.00014996,2]
[329757447,1718651444627,-171.407289,0.00014996,2]
[329757448,1718651444636,-151.0,0.00014996,2]
[329757449,1718651444646,-151.0,0.00014996,2]
[329757450,1718651444656,-151.0,0.00014996,2]
[329757451,1718651444665,-151.0,0.00014996,2]
[329757452,1718651444674,-151.0,0.00014996,2]
[329757453,1718651444684,-151.0,0.00014996,2]
[329757454,1718651444694,-151.0,0.00014996,2]
[329757455,1718651444703,-151.0,0.00014996,2]
[329757456,1718651444714,-151.0,0.00014996,2]
[329757457,1718651444727,-151.0,0.00014996,2]
[329757458,1718651444737,-151.0,0.00014996,2]
[329757459,1718651444746,-151.0,0.00014996,2]
[329757460,1718651444757,-151.0,0.00014996,2]
[329757461,1718651444766,-151.637365,0.00014996,2]
[329757462,1718651444776,-151.0,0.00014996,2]
[329757463,1718651444786,-151.0,0.00014996,2]
[329757464,1718651444795,-151.0,0.00014996,2]
[329757465,1718651444808,-33.00376894,0.00014996,2]
[329757516,1718651446705,-124.74439706,0.00014996,2]
[329757518,1718651446715,-151.0,0.00014996,2]
[329757520,1718651446729,-151.0,0.00014996,2]
[329757522,1718651446738,-151.0,0.00014996,2]
[329757524,1718651446749,-1000.0,0.00014996,2]
[329757526,1718651446759,-1000.0,0.00014996,2]
[329757528,1718651446769,-1000.0,0.00014996,2]
[329757530,1718651446779,-1000.0,0.00014996,2]
[329757532,1718651446788,-1000.0,0.00014996,2]
[329757533,1718651446799,-1000.0,0.00014996,2]
[329757535,1718651446808,-151.0,0.00014996,2]
[329757537,1718651446819,-1000.0,0.00014996,2]
[329757539,1718651446828,-151.0,0.00014996,2]
[329757542,1718651446838,-245.470752,0.00014996,2]
[329757544,1718651446848,-1000.0,0.00014996,2]
[329757546,1718651446858,-1000.0,0.00014996,2]
[329757548,1718651446866,-1000.0,0.00014996,2]
[329757551,1718651446875,-1000.0,0.00014996,2]
[329757555,1718651446885,-1000.0,0.00014996,2]
[329757557,1718651446895,-286.388026,0.00014996,2]
[329757561,1718651446905,-1000.0,0.00014996,2]
[329757563,1718651446915,-286.388026,0.00014996,2]
[329757565,1718651446924,-1000.0,0.00014996,2]
[329757567,1718651446934,-286.388026,0.00014996,2]
[329757569,1718651446943,-1000.0,0.00014996,2]
[329757571,1718651446952,-1000.0,0.00014996,2]
[329757573,1718651446962,-1000.0,0.00014996,2]
[329757575,1718651446971,-1000.0,0.00014996,2]
[329757576,1718651446980,-1000.0,0.00014996,2]
[329757577,1718651446989,-1000.0,0.00014996,2]
[329757578,1718651446998,-1000.0,0.00014996,2]
[329757579,1718651447008,-286.388026,0.00014996,2]
[329757580,1718651447017,-286.388026,0.00014996,2]
[329757581,1718651447026,-1000.0,0.00014996,2]
[329757582,1718651447034,-1000.0,0.00014996,2]
[329757583,1718651447043,-1000.0,0.00014996,2]
[329757584,1718651447052,-1000.0,0.00014996,2]
[329757585,1718651447060,-286.388026,0.00014996,2]
[329757586,1718651447069,-1000.0,0.00014996,2]
[329757587,1718651447078,-1000.0,0.00014996,2]
[329757588,1718651447087,-1000.0,0.00014996,2]
[329757589,1718651447098,-1000.0,0.00014996,2]
[329757590,1718651447107,-1000.0,0.00014996,2]
[329757591,1718651447115,-1000.0,0.00014996,2]
[329757592,1718651447124,-1000.0,0.00014996,2]
[329757593,1718651447134,-1000.0,0.00014996,2]
[329757594,1718651447144,-1000.0,0.00014996,2]
[329757595,1718651447154,-1000.0,0.00014996,2]
[329757596,1718651447164,-1000.0,0.00014996,2]
[329757597,1718651447173,-1000.0,0.00014996,2]
[329757599,1718651447183,-1000.0,0.00014996,2]
[329757601,1718651447192,-1000.0,0.00014996,2]
[329757603,1718651447202,-1000.0,0.00014996,2]
[329757605,1718651447212,-1000.0,0.00014996,2]
[329757607,1718651447222,-1000.0,0.00014996,2]
[329757609,1718651447231,-1000.0,0.00014996,2]
[329757611,1718651447241,-1000.0,0.00014996,2]
[329757614,1718651447250,-1000.0,0.00014996,2]
[329757615,1718651447260,-1000.0,0.00014996,2]
[329757618,1718651447270,-1000.0,0.00014996,2]
[329757620,1718651447280,-1000.0,0.00014996,2]
[329757622,1718651447289,-1000.0,0.00014996,2]
[329757624,1718651447300,-1000.0,0.00014996,2]
[329757626,1718651447309,-1000.0,0.00014996,2]
[329757628,1718651447321,-364.966566,0.00014996,2]
[329757630,1718651447331,-151.0,0.00014996,2]
[329757632,1718651447341,-151.0,0.00014996,2]
[329757634,1718651447353,-151.0,0.00014996,2]
[329757636,1718651447362,-151.0,0.00014996,2]
[329757638,1718651447371,-151.0,0.00014996,2]
[329757640,1718651447384,-151.0,0.00014996,2]
[329757642,1718651447396,-151.0,0.00014996,2]
[329757644,1718651447407,-151.0,0.00014996,2]
[329757646,1718651447418,-151.0,0.00014996,2]
[329757648,1718651447429,-151.0,0.00014996,2]
[329757651,1718651447439,-151.0,0.00014996,2]
[329757653,1718651447450,-151.0,0.00014996,2]
[329757654,1718651447461,-203.1128,0.00014996,2]
[329757656,1718651447471,-282.68764268,0.00014997,2]
[329757658,1718651447481,-441.44558995,0.00014997,2]
[329757660,1718651447493,-151.0,0.00014998,2]
[329757662,1718651447504,-151.0,0.00014998,2]
[329757664,1718651447517,-151.0,0.00014998,2]
[329757666,1718651447526,-151.0,0.00014998,2]
[329757668,1718651447537,-151.0,0.00014998,2]
[329757671,1718651447547,-151.0,0.00014998,2]
[329757673,1718651447560,-151.0,0.00014998,2]
[329757675,1718651447569,-151.0,0.00014998,2]
[329757677,1718651447579,-151.0,0.00014998,2]
[329757678,1718651447590,-151.0,0.00014998,2]
[329757680,1718651447602,-151.0,0.00014998,2]
[329757682,1718651447613,-151.0,0.00014998,2]
[329757684,1718651447624,-151.0,0.00014998,2]
[329757687,1718651447634,-151.988398,0.00014998,2]
[329757689,1718651447646,-151.0,0.00014998,2]
[329757690,1718651447656,-151.0,0.00014998,2]
[329757693,1718651447667,-579.161089,0.00014998,2]
[329757694,1718651447678,-579.161089,0.00014998,2]
[329757696,1718651447688,-579.161089,0.00014998,2]
[329757698,1718651447699,-579.161089,0.00014998,2]
[329757701,1718651447710,-579.161089,0.00014998,2]
[329757703,1718651447725,-579.161089,0.00014998,2]
[329757705,1718651447736,-151.0,0.00014998,2]
[329757706,1718651447747,-151.0,0.00014998,2]
[329757709,1718651447759,-151.0,0.00014998,2]
[329757711,1718651447771,-272.040854,0.00014998,2]
[329757713,1718651447781,-165.219395,0.00014998,2]
[329757714,1718651447793,-165.219395,0.00014998,2]
[329757716,1718651447804,-151.0,0.00014998,2]
[329757718,1718651447816,-958.735935,0.00014998,2]
[329757720,1718651447826,-958.735935,0.00014998,2]
[329757722,1718651447836,-151.0,0.00014998,2]
[329757724,1718651447846,-151.0,0.00014998,2]
[329757726,1718651447857,-151.0,0.00014998,2]
[329757728,1718651447868,-237.84203,0.00014998,2]
[329757730,1718651447878,-151.0,0.00014998,2]
[329757732,1718651447888,-151.0,0.00014998,2]
[329757734,1718651447899,-286.388026,0.00014998,2]
[329757736,1718651447909,-286.388026,0.00014998,2]
[329757738,1718651447920,-309.91166189,0.00014999,2]
[329757740,1718651447931,-19700.83532194,0.00015,2]
[329757743,1718651447943,-27200.30922505,0.00015,2]
[329757745,1718651447954,-946.56236145,0.00015,2]
[329757746,1718651447965,-1303.29757194,0.00015,2]
[329757748,1718651447976,-1101.81251075,0.00015,2]
[329757751,1718651447986,-2820.56313913,0.00015,2]
[329757752,1718651447997,-1693.11395485,0.00015,2]
[329757754,1718651448008,-2413.79605276,0.00015,2]
[329757757,1718651448018,-151.0,0.00015,2]
[329757758,1718651448029,-151.0,0.00015,2]
[329757760,1718651448040,-234.624732,0.00015,2]
[329757763,1718651448051,-209.95948379,0.00015,2]
[329757764,1718651448062,-154.98450155,0.00015,2]
[329757766,1718651448072,-154.98450155,0.00015,2]
[329757768,1718651448082,-151.0,0.00015,2]
[329757770,1718651448093,-151.0,0.00015,2]
[329757772,1718651448105,-190.854964,0.00015,2]
[329757775,1718651448116,-151.0,0.00015,2]
[329757777,1718651448126,-151.0,0.00015,2]
[329757779,1718651448135,-151.0,0.00015,2]
[329757780,1718651448145,-151.0,0.00015,2]
[329757783,1718651448156,-224.265466,0.00015,2]
[329757784,1718651448167,-151.0,0.00015,2]
[329757786,1718651448178,-151.0,0.00015,2]
[329757788,1718651448189,-151.0,0.00015,2]
[329757790,1718651448199,-151.0,0.00015,2]
[329757793,1718651448211,-151.0,0.00015,2]
[329757794,1718651448222,-579.161089,0.00015,2]
[329757796,1718651448232,-579.161089,0.00015,2]
[329757799,1718651448244,-579.161089,0.00015,2]
[329757800,1718651448254,-579.161089,0.00015,2]
[329757803,1718651448265,-579.161089,0.00015,2]
[329757804,1718651448276,-579.161089,0.00015,2]
[329757807,1718651448287,-151.0,0.00015,2]
[329757808,1718651448297,-151.0,0.00015,2]
[329757811,1718651448308,-165.219395,0.00015,2]
[329757813,1718651448319,-165.219395,0.00015,2]
[329757814,1718651448330,-165.219395,0.00015,2]
[329757816,1718651448341,-165.219395,0.00015,2]
[329757818,1718651448354,-165.219395,0.00015,2]
[329757820,1718651448363,-165.219395,0.00015,2]
[329757822,1718651448374,-958.735935,0.00015,2]
[329757824,1718651448384,-958.735935,0.00015,2]
[329757826,1718651448394,-958.735935,0.00015,2]
[329757828,1718651448405,-958.735935,0.00015,2]
[329757830,1718651448416,-958.735935,0.00015,2]
[329757832,1718651448426,-958.735935,0.00015,2]
[329757834,1718651448436,-151.0,0.00015,2]
[329757836,1718651448446,-151.0,0.00015,2]
[329757838,1718651448456,-151.0,0.00015,2]
[329757840,1718651448467,-151.0,0.00015,2]
[329757842,1718651448477,-151.0,0.00015,2]
[329757844,1718651448487,-201.801845,0.00015,2]
[329757846,1718651448498,-151.0,0.00015,2]
[329757848,1718651448509,-151.0,0.00015,2]
[329757850,1718651448520,-151.0,0.00015,2]
[329757852,1718651448532,-151.0,0.00015,2]
[329757854,1718651448543,-151.0,0.00015,2]
[329757856,1718651448553,-286.388026,0.00015,2]
[329757858,1718651448564,-286.388026,0.00015,2]
[329757860,1718651448574,-286.388026,0.00015,2]
[329757862,1718651448584,-286.388026,0.00015,2]
[329757864,1718651448595,-286.388026,0.00015,2]
[329757867,1718651448608,-286.388026,0.00015,2]
[329757868,1718651448622,-151.0,0.00015,2]
[329757870,1718651448632,-151.0,0.00015,2]
[329757872,1718651448642,-151.0,0.00015,2]
[329757874,1718651448652,-151.0,0.00015,2]
[329757876,1718651448663,-151.0,0.00015,2]
[329757878,1718651448673,-151.0,0.00015,2]
[329757880,1718651448683,-489.77886636,0.000156,2]
[329757883,1718651448695,-165.219395,0.000156,2]
[329757885,1718651448704,-165.219395,0.000156,2]
[329757886,1718651448715,-958.735935,0.000156,2]
[329757889,1718651448729,-958.735935,0.000156,2]
[329757890,1718651448738,-151.0,0.000156,2]
[329757892,1718651448748,-1000.0,0.00016,16]
[329757894,1718651448758,-172.132112,0.00016,2]
[329757896,1718651448770,-579.161089,0.00016,2]
[329757898,1718651448781,-579.161089,0.00016,2]
[329757901,1718651448791,-151.0,0.00016,2]
[329757902,1718651448802,-286.388026,0.00016,2]
[329757905,1718651448812,-286.388026,0.00016,2]
[329757906,1718651448822,-151.0,0.00016,2]
[329757909,1718651448832,-157.870188,0.00016,2]
[329757910,1718651448842,-448.7020585,0.00016384,2]
[329757913,1718651448856,-153.0,0.00016384,2]
[329757915,1718651448866,-292.7706602,0.00016384,2]
[329757917,1718651448875,-292.7706602,0.00016384,2]
[329757918,1718651448883,-309.8825958,0.00016384,2]
[329757921,1718651448893,-292.7706602,0.00016384,2]
[329757923,1718651448904,-207.0197224,0.00016384,2]
[329757937,1718651448913,-292.1764695,0.00016384,2]
[329757939,1718651449042,-410.8131258,0.00016384,2]
[329757941,1718651449052,-307.1121085,0.00016384,2]
[329757943,1718651449061,-153.0,0.00016384,2]
[329757945,1718651449071,-263451.70811734,0.000164,2]
[329757948,1718651449085,-1409.59,0.000164,2]
[329757950,1718651449097,-620.33566468,0.000164,2]
[329757952,1718651449111,-80200.16571641,0.000164,2]
[329757954,1718651449123,-5623.44912089,0.000164,2]
[329758719,1718652552583,-404.82302769,9.91e-05,2]
[329758720,1718652552646,-52.20059567,9.91e-05,2]
[329758721,1718652552801,-286.13904165,9.911e-05,2]
[329758722,1718652552831,-66.48339037,9.911e-05,2]
[329758723,1718652552864,-195.54538665,9.911e-05,2]
[329758724,1718652577043,-424.92685653,9.941e-05,2]
[329758725,1718652577080,-424.92685653,9.941e-05,2]
[329758726,1718652602151,-441.92393079,9.941e-05,2]
[329758727,1718652602212,-361.8508554,9.941e-05,2]
[329758728,1718652602288,-441.92393079,9.941e-05,2]
[329758750,1718652631767,-457.512,9.941e-05,2]
[329758751,1718652631780,-478.18327812,9.941e-05,2]